bitfinex/quotes_ETHUSD_20241003
["timestamp","ask_amount","ask_price","bid_price","bid_amount"]
[1727958293851,0.54113161,2353.9,2353.6,4.24868]
[1727958294703,0.54113161,2353.9,2353.6,4.33364741]
[1727958294912,0.54113161,2353.8,2353.7,4.24859]
[1727958295123,0.54113161,2353.8,2353.5,4.24896]
[1727958295339,0.54113161,2353.7,2353.5,4.24896]
[1727958295521,5.02284,2353.9,2353.5,4.24896]
[1727958295815,0.54179623,2353.8,2353.5,4.24896]
[1727958296055,0.54179623,2353.7,2353.3,5.00045]
[1727958296260,5.02284,2353.9,2353.4,4.24915]
[1727958296261,0.54179623,2353.6,2353.4,4.24915]
[1727958296400,0.54179623,2353.5,2353.4,4.24915]
[1727958296603,0.54179623,2353.7,2353.4,4.24915]
[1727958296954,0.54179623,2353.6,2353.4,4.24915]
[1727958297248,0.54179623,2353.5,2353.2,4.24945]
[1727958297543,0.54179623,2353.4,2353.3,4.24935]
[1727958297752,0.54179623,2353.4,2353.3,5.09923]
[1727958298266,4.24864,2353.7,2353.3,4.24935]
[1727958298409,0.54179623,2353.6,2353.3,4.79935]
[1727958298607,0.7972,2353.4,2353.1,4.2496]
[1727958298803,0.54179623,2353.3,2353.1,4.2496]
[1727958299031,0.54179623,2353.2,2353.0,4.24989]
[1727958299347,0.7972,2353.4,2353.1,4.24971]
[1727958299534,0.54250148,2353.3,2353.1,4.24971]
[1727958299730,0.54250148,2353.2,2353.1,4.24971]
[1727958300262,0.54250148,2353.2,2352.9,4.25006]
[1727958300410,4.2496,2353.2,2352.8,4.25025]
[1727958300611,4.24883,2353.6,2353.0,4.24971]
[1727958300612,0.54246426,2353.1,2353.0,4.24971]
[1727958301547,0.54246426,2353.1,2352.9,8.49995]
[1727958301753,0.54246426,2353.0,2352.9,4.24997]
[1727958302182,0.54246426,2353.0,2352.9,5.182599]
[1727958302400,7.39,2353.9,2353.5,4.24885]
[1727958302715,5.06600782,2354.0,2353.5,4.24885]
[1727958302716,0.54237712,2353.8,2353.5,4.24885]
[1727958302862,0.54237712,2353.7,2353.5,4.24885]
[1727958303059,0.54240859,2353.6,2353.5,4.79897]
[1727958304793,0.54240859,2353.6,2353.4,4.24912]
[1727958305023,4.24842,2353.9,2353.4,8.49814]
[1727958305024,0.54240859,2353.5,2353.4,8.49814]
[1727958305382,0.54240859,2353.5,2353.4,9.980654]
[1727958305586,0.54270092,2353.5,2353.4,5.731534]
[1727958305844,0.54270092,2354.0,2353.4,5.731534]
[1727958306124,0.54270092,2354.0,2353.6,4.24874]
[1727958306125,4.24809,2354.0,2353.6,4.24874]
[1727958306326,4.24809,2354.0,2353.4,5.731534]
[1727958306327,0.92875677,2353.9,2353.5,4.24896]
[1727958306528,0.54270418,2353.8,2353.5,4.24896]
[1727958306735,0.54270418,2353.7,2353.6,4.24881]
[1727958306897,0.54270418,2353.7,2353.6,4.79881]
[1727958307311,0.4443633,2354.2,2353.8,4.24834]
[1727958307490,0.92948308,2354.1,2353.6,4.79877]
[1727958307694,0.92948308,2354.0,2353.7,4.24861]
[1727958308028,0.54312957,2353.9,2353.7,4.24861]
[1727958308338,0.54312957,2353.8,2353.7,4.24861]
[1727958308952,0.54352089,2353.8,2353.7,4.24861]
[1727958309304,4.2479,2354.1,2353.7,4.24861]
[1727958309503,0.54353661,2354.0,2353.7,4.24861]
[1727958309758,0.54353661,2353.9,2353.6,4.79877]
[1727958310079,0.54353661,2353.8,2353.7,4.24862]
[1727958310408,0.93067198,2353.8,2353.7,4.24862]
[1727958311035,0.54353661,2353.8,2353.7,4.24862]
[1727958311344,0.93068774,2353.8,2353.7,4.24862]
[1727958312175,0.38715113,2353.8,2353.7,4.24862]
[1727958312307,1.72415698,2354.3,2353.9,4.24815]
[1727958312308,2.1861262,2354.3,2353.9,4.24815]
[1727958312504,2.1861262,2354.3,2353.8,4.24841]
[1727958312505,10.55388913,2354.3,2353.8,4.24841]
[1727958312733,5.41179795,2354.2,2353.8,4.24841]
[1727958312916,1.55167065,2354.1,2353.8,4.24841]
[1727958313221,1.55167065,2354.0,2353.6,4.24872]
[1727958313551,1.30371913,2354.2,2353.8,4.24844]
[1727958313552,1.55167065,2353.9,2353.8,4.24844]
[1727958313846,1.55167065,2353.9,2353.7,4.24861]
[1727958314031,1.55167065,2353.8,2353.7,4.24861]
[1727958314842,0.93162844,2353.8,2353.7,4.24861]
[1727958315354,0.54390574,2353.8,2353.7,4.24861]
[1727958315523,0.93162844,2353.8,2353.7,4.24861]
[1727958316010,0.93162844,2353.8,2353.7,5.098351]
[1727958317341,1.55274947,2353.8,2353.7,5.098351]
[1727958317545,0.93162844,2353.8,2353.7,5.098351]
[1727958318251,0.93162844,2353.8,2353.7,6.429551]
[1727958318760,0.88255391,2354.2,2353.8,0.55]
[1727958318921,0.88255391,2354.2,2353.9,4.24809]
[1727958319126,0.88255391,2354.2,2353.9,8.49621]
[1727958319327,0.62131601,2354.1,2354.0,4.24795]
[1727958319709,1.63096063,2354.1,2354.0,4.24795]
[1727958319914,2.17519011,2354.1,2354.0,4.24795]
[1727958320112,2.17519011,2354.1,2354.0,5.38452851]
[1727958320326,1.16554549,2354.1,2354.0,6.19102851]
[1727958320719,1.55388128,2354.1,2354.0,6.19102851]
[1727958320970,1.5538987,2354.1,2354.0,6.19102851]
[1727958321169,1.16554549,2354.1,2354.0,6.19102851]
[1727958321343,1.55389705,2354.1,2354.0,6.19102851]
[1727958321552,1.55389705,2354.1,2354.0,4.24795]
[1727958321553,1.55389232,2354.1,2354.0,4.24795]
[1727958321782,1.16554549,2354.1,2354.0,4.24795]
[1727958322284,1.55384456,2354.1,2354.0,4.24795]
[1727958323188,1.5507212,2354.1,2354.0,4.24795]
[1727958323756,0.92940519,2354.1,2354.0,4.24795]
[1727958324782,0.92940519,2354.1,2353.9,4.24822]
[1727958324989,0.92940519,2354.0,2353.9,4.24822]
[1727958325349,0.5405357,2354.0,2353.9,4.24822]
[1727958325575,0.92872894,2354.0,2353.9,4.24822]
[1727958326298,0.92872894,2354.0,2353.7,4.24862]
[1727958326445,5.13053391,2354.1,2353.7,8.49717]
[1727958326446,0.93683676,2353.9,2353.7,8.49717]
[1727958326642,0.92872894,2353.8,2353.7,8.49717]
[1727958327250,0.92872894,2353.8,2353.7,4.24855]
[1727958328498,0.92872894,2353.8,2353.7,9.61636596]
[1727958328800,0.88255391,2354.4,2354.2,4.24772]
[1727958328946,0.54068882,2354.3,2354.2,4.24772]
[1727958329287,1.30459122,2354.5,2354.3,4.2474]
[1727958329459,0.88255391,2354.5,2354.4,4.24736]
[1727958329793,1.4235517,2354.5,2354.4,4.24736]
[1727958329951,0.92936716,2354.5,2354.4,4.24736]
[1727958330460,0.92936716,2354.5,2354.4,5.729396]
[1727958330666,0.88255391,2355.0,2354.9,4.24646]
[1727958330987,0.88255391,2355.0,2354.9,12.61727596]
[1727958330988,0.92971109,2355.0,2354.9,12.61727596]
[1727958331171,0.44439497,2355.2,2355.1,4.2461]
[1727958331379,0.38458324,2355.2,2355.1,4.2461]
[1727958331567,0.92232966,2355.2,2355.1,4.7961]
[1727958331762,0.53774642,2355.2,2355.1,4.7961]
[1727958331963,0.53803624,2355.5,2355.3,4.24564]
[1727958332172,0.92276462,2355.4,2355.3,4.24564]
[1727958332662,0.88255391,2355.9,2355.6,4.24516]
[1727958332963,8.71383087,2356.0,2355.6,8.49028]
[1727958332964,0.92214783,2355.8,2355.6,8.49028]
[1727958333277,0.53770239,2355.7,2355.6,4.24512]
[1727958333891,0.92179158,2355.7,2355.5,4.24534]
[1727958334196,12.52516173,2356.0,2355.5,4.24534]
[1727958334396,0.92046904,2355.9,2355.5,4.24534]
[1727958334599,5.13516173,2356.0,2355.5,4.2453]
[1727958334600,0.92046904,2355.8,2355.5,4.2453]
[1727958334774,0.53664987,2355.7,2355.3,1.3813]
[1727958334982,0.00810782,2356.0,2355.6,4.24508]
[1727958335210,0.53664637,2355.9,2355.6,4.24508]
[1727958335507,0.53664637,2355.8,2355.6,4.24508]
[1727958335674,0.53628619,2355.7,2355.6,4.24508]
[1727958336020,0.7947,2356.1,2355.9,4.24466]
[1727958336311,4.78080553,2356.0,2355.5,4.24523]
[1727958336494,0.53631553,2355.9,2355.7,4.24491]
[1727958336690,0.7947,2356.1,2355.8,4.24474]
[1727958336891,0.53588743,2356.0,2355.9,4.24457]
[1727958337088,0.535905,2356.0,2355.4,0.55]
[1727958337398,0.7947,2356.1,2355.7,4.24501]
[1727958337605,0.7947,2356.1,2355.8,4.24483]
[1727958338098,0.53556197,2356.0,2355.6,8.4901]
[1727958338266,5.03902,2356.1,2355.6,8.4901]
[1727958338600,5.03902,2356.1,2355.7,4.24499]
[1727958338820,5.03902,2356.1,2355.8,4.24483]
[1727958338821,0.7947,2356.1,2355.8,4.24483]
[1727958339102,0.7947,2356.1,2355.7,4.24501]
[1727958339261,0.7947,2356.1,2355.7,4.759915]
[1727958340464,5.03908,2356.1,2355.7,0.514905]
[1727958340763,0.00810782,2356.0,2355.7,0.514905]
[1727958341469,4.24475,2355.9,2354.8,0.12]
[1727958341680,4.24475,2355.9,2355.4,4.24545]
[1727958341918,4.24475,2355.9,2355.5,4.24537]
[1727958342120,4.25285782,2355.9,2355.5,4.24537]
[1727958342427,5.03914,2356.1,2355.7,4.24494]
[1727958342715,0.7947,2356.1,2355.8,4.24476]
[1727958342912,0.7947,2356.1,2355.7,8.48985]
[1727958343081,5.03908,2356.1,2355.7,4.24491]
[1727958344481,4.24531,2355.6,2355.1,4.24592]
[1727958344705,0.7674,2355.5,2355.0,0.7501]
[1727958344912,0.7674,2355.5,2355.1,4.24601]
[1727958345319,5.01279,2355.5,2355.1,4.24601]
[1727958345618,0.7674,2355.5,2355.1,4.24601]
[1727958345910,5.01279,2355.5,2355.1,4.24601]
[1727958346166,0.7674,2355.5,2355.1,8.49199]
[1727958346385,4.24556,2355.4,2355.0,4.99637]
[1727958346668,0.5102146,2355.4,2355.0,4.24613]
[1727958346824,5.01278,2355.5,2355.0,4.24613]
[1727958347022,4.24581,2355.3,2354.9,4.2464]
[1727958347264,4.24556,2355.4,2354.9,4.2464]
[1727958347265,8.49124,2355.4,2354.9,4.24638]
[1727958347426,4.24556,2355.4,2354.9,4.24638]
[1727958347856,8.49122,2355.4,2354.9,4.24638]
[1727958348260,4.25366782,2355.4,2354.9,4.24638]
[1727958348760,4.24646,2354.9,2354.8,0.12]
[1727958348960,0.7657,2354.9,2354.8,0.12]
[1727958349659,5.01216,2354.9,2354.8,0.12]
[1727958349871,5.5477169,2354.9,2354.8,0.12]
[1727958350083,6.3942522,2354.9,2354.8,0.12]
[1727958351312,5.8586953,2354.9,2354.8,0.12]
[1727958351452,6.39439187,2354.9,2354.8,0.12]
[1727958352984,1.30139657,2354.9,2354.8,0.12]
[1727958354700,0.00810782,2355.0,2354.8,0.12]
[1727958354987,0.53594746,2354.9,2354.8,0.12]
[1727958355148,0.53594096,2354.9,2354.8,0.12]
[1727958355498,4.78240096,2354.9,2354.8,0.12]
[1727958355646,1.43882506,2354.9,2354.8,0.12]
[1727958355852,0.53594096,2354.9,2354.8,0.12]
[1727958356075,4.78240096,2354.9,2354.8,0.12]
[1727958357192,0.53594096,2354.9,2354.8,0.12]
[1727958358453,4.24615,2355.1,2354.8,0.12]
[1727958358454,0.53701957,2355.0,2354.8,0.12]
[1727958358674,0.53701957,2354.9,2354.8,0.12]
[1727958360297,4.78347957,2354.9,2354.8,0.12]
[1727958360462,0.53701957,2354.9,2354.8,0.12]
[1727958361093,4.78347957,2354.9,2354.8,0.12]
[1727958361251,0.53701957,2354.9,2354.8,0.12]
[1727958362353,0.53701957,2354.9,2354.8,4.36664]
[1727958362948,0.53701957,2354.9,2354.8,0.12]
[1727958363671,0.53701957,2354.9,2354.8,5.227977]
[1727958363907,0.77110782,2355.6,2354.8,6.555467]
[1727958364057,0.53737037,2355.5,2355.1,4.24596]
[1727958364369,5.00829,2355.6,2355.0,4.24625]
[1727958364370,4.78294037,2355.4,2355.0,4.24625]
[1727958364697,0.53737037,2355.3,2355.0,4.24625]
[1727958364908,0.53737037,2355.2,2355.1,4.2461]
[1727958365084,0.53737037,2355.2,2355.1,5.25649195]
[1727958366766,0.53737037,2355.2,2355.1,6.56769195]
[1727958366995,1.20360276,2355.8,2355.4,4.24554]
[1727958367194,0.44440276,2355.8,2355.5,4.24535]
[1727958367398,4.25276782,2355.9,2355.5,4.24535]
[1727958367399,0.53763438,2355.7,2355.5,4.669904]
[1727958367695,0.5376803,2355.6,2355.5,4.24535]
[1727958368897,4.7830403,2355.6,2355.4,0.12]
[1727958369226,6.12683135,2355.5,2355.4,0.12]
[1727958369385,6.51060028,2355.5,2355.4,0.12]
[1727958370472,6.51060028,2355.5,2354.7,4.2467]
[1727958370473,4.24602,2355.2,2354.7,4.2467]
[1727958370774,4.78410149,2355.1,2354.7,8.49343]
[1727958371030,0.53800149,2355.0,2354.7,4.2467]
[1727958371181,0.53800149,2354.9,2354.7,4.2467]
[1727958371386,0.53800149,2354.8,2354.7,4.2467]
[1727958371597,0.53800149,2354.8,2354.6,0.7995]
[1727958371807,0.53800149,2354.7,2354.6,4.24696]
[1727958372327,0.7592,2355.0,2354.7,4.24682]
[1727958372509,0.53813381,2354.9,2354.7,4.24682]
[1727958372709,0.7592,2355.0,2354.7,4.24682]
[1727958372911,0.53813179,2354.9,2354.7,8.49354]
[1727958373113,0.00810782,2355.2,2354.9,4.24644]
[1727958373315,0.92229912,2355.1,2354.9,4.24644]
[1727958373518,0.92229912,2355.0,2354.7,4.24666]
[1727958373839,0.53825358,2354.9,2354.7,4.24666]
[1727958373978,0.53825358,2354.9,2354.8,4.24664]
[1727958374425,0.5385497,2354.9,2354.8,4.24664]
[1727958375330,0.9229334,2354.9,2354.5,4.79701]
[1727958375484,0.9229334,2354.8,2354.5,4.24701]
[1727958375681,0.9229334,2354.7,2354.5,4.24701]
[1727958375927,0.5385497,2354.6,2354.4,5.06522]
[1727958376125,0.5385497,2354.5,2354.4,5.06522]
[1727958376431,0.5385497,2354.5,2354.4,5.06509]
[1727958376595,5.12887391,2355.0,2354.6,4.247]
[1727958376920,0.92299649,2354.9,2354.6,8.49385]
[1727958377140,0.92299649,2354.8,2354.7,4.24681]
[1727958377535,4.24593,2355.2,2354.7,4.24681]
[1727958377536,0.88255391,2355.2,2354.7,5.096176]
[1727958377846,5.12858391,2355.2,2354.8,4.24655]
[1727958377995,1.30740393,2355.1,2354.8,4.24655]
[1727958378196,0.92303024,2355.0,2354.8,4.24655]
[1727958378395,0.92303024,2354.9,2354.8,4.24655]
[1727958379140,0.92303024,2354.9,2354.4,0.8179]
[1727958379287,0.92303024,2354.9,2354.5,4.2471]
[1727958379288,0.92303024,2354.8,2354.5,4.2471]
[1727958379493,0.92303024,2354.7,2354.5,4.2471]
[1727958379692,0.53865071,2354.6,2354.5,4.2471]
[1727958382026,0.53865071,2354.6,2354.5,5.728321]
[1727958383395,6.2947676,2355.1,2354.5,5.728321]
[1727958383396,0.88255391,2355.0,2354.5,4.2471]
[1727958383600,0.53842008,2354.9,2354.5,4.2471]
[1727958383836,0.53842008,2354.8,2354.6,4.24698]
[1727958384046,0.53842008,2354.8,2354.4,0.8179]
[1727958384047,4.63079743,2354.9,2354.4,4.24721]
[1727958384343,4.63079743,2354.9,2354.1,0.776]
[1727958384344,4.24682,2354.7,2354.3,4.24747]
[1727958384558,6.07835697,2354.6,2353.8,0.88341352]
[1727958384858,0.00810782,2354.2,2354.1,4.2479]
[1727958384996,1.31132629,2354.2,2353.8,4.24833]
[1727958385193,4.78632847,2354.1,2353.7,4.24862]
[1727958385450,0.53841847,2354.0,2353.7,4.24862]
[1727958385597,0.92269611,2353.9,2353.7,4.24862]
[1727958385798,4.24791,2354.1,2353.6,4.24878]
[1727958385799,0.9225566,2353.8,2353.6,4.24878]
[1727958386067,0.92253734,2353.7,2353.6,4.24867]
[1727958386342,0.53841847,2353.7,2353.6,4.24867]
[1727958386555,0.92241931,2353.7,2353.6,4.24867]
[1727958386694,0.53841847,2353.7,2353.6,5.098431]
[1727958387332,8.90319173,2354.2,2353.6,5.098431]
[1727958387639,0.53232232,2353.7,2353.6,4.24867]
[1727958387947,1.65546173,2354.2,2353.9,4.24825]
[1727958388252,1.65546173,2354.2,2354.0,4.24801]
[1727958388253,0.91616385,2354.1,2354.0,4.24801]
[1727958388907,0.91616385,2354.1,2353.7,4.24847]
[1727958389120,0.53221864,2354.0,2353.9,4.24826]
[1727958389329,5.06228782,2354.4,2354.0,4.24801]
[1727958389648,1.5302425,2354.3,2354.0,4.24801]
[1727958389847,0.91593565,2354.2,2354.0,4.24801]
[1727958390002,0.91593565,2354.1,2354.0,4.24801]
[1727958390603,0.91593565,2354.1,2353.8,4.79841]
[1727958390800,5.94484173,2354.4,2354.1,4.24786]
[1727958390801,0.8068,2354.4,2354.1,4.24786]
[1727958391006,0.53194868,2354.3,2354.1,4.24786]
[1727958391246,0.53194868,2354.2,2354.1,4.24786]
[1727958391493,0.91595948,2354.2,2354.1,4.24786]
[1727958392584,0.91595948,2354.2,2353.9,4.24822]
[1727958392789,0.88255391,2354.5,2354.2,4.24765]
[1727958392949,0.38400633,2354.4,2354.2,0.08494281]
[1727958393289,1.30400022,2354.7,2354.2,4.24772]
[1727958393586,5.24565436,2354.6,2354.1,5.05637]
[1727958393770,0.99851436,2354.5,2354.1,5.05637]
[1727958393949,0.99851436,2354.5,2354.1,6.09332219]
[1727958394352,4.24714,2354.6,2354.1,6.09332219]
[1727958395009,0.38403956,2354.4,2354.1,6.09332219]
[1727958395315,4.24714,2354.6,2354.2,4.24771]
[1727958395466,0.3838772,2354.5,2354.3,1.03410322]
[1727958395804,0.3838772,2354.4,2354.2,4.24771]
[1727958396008,4.24714,2354.6,2354.2,4.24771]
[1727958396168,0.38384569,2354.5,2354.2,4.85531299]
[1727958396369,0.38384569,2354.4,2354.2,4.85531299]
[1727958396705,4.24682,2354.7,2354.2,4.85531299]
[1727958396911,0.99794919,2354.6,2354.2,4.85531299]
[1727958397209,0.38382661,2354.5,2354.4,4.24736]
[1727958397513,0.8018,2354.8,2354.5,4.24711]
[1727958397711,0.3838366,2354.7,2354.5,4.24711]
[1727958397910,0.88255391,2355.0,2354.6,5.07008]
[1727958398122,1.30380253,2355.1,2354.9,4.24642]
[1727958398411,4.24611,2355.1,2354.7,4.24672]
[1727958398568,0.38387711,2354.9,2354.7,4.2467]
[1727958398769,0.38387711,2354.9,2354.7,8.49338]
[1727958399071,0.38387711,2354.9,2354.8,4.24664]
[1727958399269,0.38390501,2355.0,2354.8,4.24664]
[1727958399473,4.24596,2355.2,2354.8,4.24664]
[1727958399673,0.38390168,2355.1,2354.9,4.24635]
[1727958399871,0.88255391,2355.4,2355.1,4.24606]
[1727958400071,0.89066173,2355.4,2355.1,4.24606]
[1727958400296,0.38389276,2355.3,2355.1,5.232034]
[1727958400496,0.38389276,2355.2,2355.1,5.232034]
[1727958401428,4.99541,2355.5,2355.1,5.232034]
[1727958402221,0.99774408,2355.4,2355.1,5.232034]
[1727958402800,0.99774408,2355.4,2354.8,0.931642]
[1727958403140,0.99774408,2355.4,2355.0,4.24616]
[1727958403346,0.3837494,2355.4,2355.1,4.24601]
[1727958403629,0.99777464,2355.4,2355.1,4.24601]
[1727958404234,0.99777464,2355.4,2355.1,4.2698871]
[1727958404437,0.3837494,2355.3,2355.2,4.24591]
[1727958404636,0.38375838,2355.5,2355.2,4.24591]
[1727958404797,0.99776175,2355.5,2355.2,4.24591]
[1727958404993,0.38376538,2355.4,2355.2,4.24591]
[1727958405225,0.38376538,2355.3,2355.2,4.24591]
[1727958405399,0.3837246,2355.3,2355.2,4.24591]
[1727958405599,4.24548,2355.5,2354.8,4.24647]
[1727958405795,4.62930027,2355.4,2355.0,4.24625]
[1727958406012,0.38371603,2355.3,2355.0,4.24625]
[1727958406340,4.24557,2355.4,2355.0,4.24625]
[1727958406497,0.38372601,2355.3,2355.0,4.24625]
[1727958406838,4.24557,2355.4,2355.0,5.150522]
[1727958407002,0.3837332,2355.3,2355.0,5.150522]
[1727958407344,0.3837332,2355.3,2354.8,4.24647]
[1727958407345,4.24599,2355.2,2354.8,4.24647]
[1727958407640,5.02989,2355.2,2354.8,4.24647]
[1727958408396,4.24584,2355.3,2354.9,4.24646]
[1727958408911,0.38366647,2355.2,2354.9,4.24646]
[1727958409244,4.24584,2355.3,2354.9,4.24646]
[1727958409421,0.38370996,2355.2,2354.9,4.24646]
[1727958409627,4.24584,2355.3,2354.9,4.24646]
[1727958409959,0.38370214,2355.2,2354.9,4.24646]
[1727958410260,4.24584,2355.3,2354.9,4.24646]
[1727958410462,0.3837244,2355.2,2354.9,4.24646]
[1727958410636,4.24584,2355.3,2354.9,4.24646]
[1727958410834,0.38373413,2355.2,2354.9,4.24646]
[1727958411173,4.24584,2355.3,2354.9,4.24646]
[1727958411470,0.3837563,2355.2,2354.9,4.24646]
[1727958411825,4.24584,2355.3,2354.9,4.24646]
[1727958412165,4.24545,2355.5,2355.1,8.49201]
[1727958412321,0.38377076,2355.4,2355.1,8.49201]
[1727958412515,4.24545,2355.5,2355.1,4.24599]
[1727958412748,0.38376393,2355.4,2355.1,4.24599]
[1727958412934,4.24524,2355.6,2355.2,4.24585]
[1727958413140,1.67145391,2355.7,2355.2,4.24585]
[1727958413141,0.38377659,2355.5,2355.4,4.24555]
[1727958413467,8.27255391,2355.9,2355.5,4.24529]
[1727958413666,0.38384794,2355.8,2355.5,5.50326546]
[1727958413899,0.38384794,2355.7,2355.5,5.50326546]
[1727958414104,5.03186,2356.0,2355.6,4.2452]
[1727958414395,4.6285592,2355.9,2355.6,0.55032655]
[1727958414563,4.6286692,2355.8,2355.4,4.79555]
[1727958414950,4.24485,2355.8,2355.4,4.79555]
[1727958415150,4.24485,2355.8,2355.5,1.31014981]
[1727958415358,4.24485,2355.8,2355.5,1.3950485]
[1727958416751,4.24509,2355.7,2355.5,1.3950485]
[1727958416952,4.24509,2355.7,2355.4,0.6348997]
[1727958417583,4.24509,2355.7,2355.4,0.55]
[1727958419491,4.24527,2355.6,2355.3,0.55]
[1727958419654,4.24527,2355.6,2355.3,1.20387123]
[1727958423317,0.7782,2355.5,2355.0,0.7939]
[1727958423522,4.24581,2355.3,2355.0,0.7939]
[1727958424229,4.24602,2355.2,2355.0,0.7939]
[1727958424431,4.24602,2355.2,2354.8,4.2466]
[1727958424633,4.24638,2355.0,2354.6,4.24698]
[1727958425147,4.24614,2355.1,2354.7,4.24676]
[1727958425348,4.24629,2355.0,2354.6,4.24698]
[1727958425558,0.00810782,2355.4,2354.9,4.24638]
[1727958425721,4.24559,2355.4,2355.0,5.05558]
[1727958426332,4.24559,2355.4,2355.0,5.1404932]
[1727958426665,4.24559,2355.4,2354.7,5.02236]
[1727958426666,4.24595,2355.2,2354.7,5.02236]
[1727958426879,4.24629,2355.0,2354.6,4.749508]
[1727958427023,0.7575,2355.1,2354.4,0.7757]
[1727958427024,4.24691,2354.7,2354.4,0.7757]
[1727958427323,4.24691,2354.7,2353.6,4.24879]
[1727958427324,4.24711,2354.6,2354.2,0.7757]
[1727958427523,4.24721,2354.5,2354.1,5.07672]
[1727958427825,4.24721,2354.5,2354.1,6.009192]
[1727958428025,4.24739,2354.4,2354.0,4.24804]
[1727958428240,4.24722,2354.5,2354.0,4.24792]
[1727958428439,5.01452,2354.6,2354.2,4.24772]
[1727958428653,5.01452,2354.6,2353.9,4.24819]
[1727958428654,4.24755,2354.3,2353.9,4.24819]
[1727958428858,4.24792,2354.1,2353.6,2.22886464]
[1727958429026,5.07012,2354.1,2353.6,0.7657]
[1727958429568,5.07012,2354.1,2353.3,4.06035805]
[1727958429569,4.24829,2353.9,2353.4,4.24914]
[1727958429863,4.24826,2354.0,2353.4,5.177881]
[1727958430066,4.24826,2354.0,2353.5,4.24891]
[1727958430268,0.83030782,2354.1,2353.0,0.789]
[1727958430469,5.07834782,2354.1,2353.6,4.24879]
[1727958430653,0.8222,2354.1,2353.7,4.673489]
[1727958431176,4.24781,2354.2,2353.8,4.24843]
[1727958431371,4.24795,2354.1,2353.7,4.673489]
[1727958432729,4.24762,2354.3,2353.8,4.7943189]
[1727958433328,4.24773,2354.2,2353.8,4.7943189]
[1727958433524,4.24773,2354.2,2353.8,0.5459689]
[1727958433788,0.792,2354.4,2353.7,0.55]
[1727958433972,4.24828,2353.9,2353.6,0.55]
[1727958434640,0.00810782,2354.0,2353.6,0.55]
[1727958434827,0.00810782,2354.0,2353.6,5.278634]
[1727958435030,8.4963,2354.0,2353.6,1.029884]
[1727958435660,8.50441782,2354.0,2353.6,1.029884]
[1727958436169,4.25619782,2354.0,2353.6,5.278644]
[1727958436374,4.25619782,2354.0,2353.6,0.55]
[1727958436583,0.00810782,2354.0,2353.6,4.24865]
[1727958436748,4.24792,2354.1,2353.6,8.49729]
[1727958436927,4.24792,2354.1,2353.6,9.402019]
[1727958437131,4.24792,2354.1,2353.6,5.153369]
[1727958438891,0.792,2354.4,2354.0,4.24806]
[1727958439175,0.00810782,2354.6,2354.0,4.24806]
[1727958439176,5.04822782,2354.6,2354.1,4.79783]
[1727958439386,5.04822782,2354.6,2354.1,5.702419]
[1727958439734,5.04012,2354.6,2354.1,5.702419]
[1727958439935,5.04013,2354.6,2354.2,4.24765]
[1727958440179,4.24702,2354.6,2354.3,0.9950069]
[1727958440603,4.24778,2354.2,2353.8,5.00754]
[1727958440828,4.24755,2354.3,2353.8,8.00743]
[1727958441115,4.24755,2354.3,2353.8,5.00743]
[1727958441331,4.24755,2354.3,2353.9,0.925599]
[1727958441474,4.2475,2354.4,2354.0,0.55]
[1727958441675,4.2472,2354.5,2354.1,4.24783]
[1727958441875,4.2472,2354.5,2354.2,0.904581]
[1727958442590,4.24708,2354.6,2354.2,5.152271]
[1727958442791,4.24708,2354.6,2354.3,0.799]
[1727958443477,4.24675,2354.8,2354.4,4.79731]
[1727958443727,5.00923,2355.0,2354.6,0.55]
[1727958443931,4.24612,2355.1,2354.7,4.33166671]
[1727958444128,4.24612,2355.1,2354.7,6.57358219]
[1727958444434,4.24647,2354.9,2354.7,1.41791548]
[1727958444582,4.24682,2354.8,2354.5,0.7572]
[1727958444926,4.24682,2354.8,2354.3,4.24738]
[1727958444927,0.7919,2354.7,2354.2,5.0465]
[1727958445089,4.24684,2354.7,2354.3,4.24752]
[1727958445283,4.24684,2354.7,2354.2,5.97593]
[1727958445284,4.24666,2354.8,2354.4,4.24736]
[1727958445524,4.24666,2354.8,2354.4,4.24728]
[1727958445891,4.24715,2354.6,2354.2,0.7988]
[1727958446093,4.24685,2354.7,2354.2,5.04638]
[1727958446515,4.24703,2354.6,2354.2,5.04638]
[1727958448207,0.00810782,2354.9,2354.0,3.0]
[1727958448208,4.24748,2354.4,2354.0,3.0]
[1727958448401,0.8102,2354.8,2353.8,5.06685]
[1727958448402,4.24773,2354.2,2353.8,5.06685]
[1727958448595,4.24773,2354.2,2353.8,5.55473581]
[1727958448939,4.24755,2354.3,2353.9,4.24817]
[1727958449232,5.05769,2354.4,2353.9,4.24824]
[1727958449780,5.05769,2354.4,2354.0,0.55]
[1727958450413,4.24755,2354.3,2353.9,4.24824]
[1727958450626,4.24782,2354.2,2353.8,5.06683]
[1727958450828,4.24755,2354.3,2353.8,5.06683]
[1727958451126,4.24731,2354.5,2354.1,4.24783]
[1727958451693,8.49461,2354.5,2354.1,4.24783]
[1727958452138,4.2475,2354.4,2353.9,0.55]
[1727958452340,4.24754,2354.3,2353.9,4.79815]
[1727958452631,4.2475,2354.4,2354.0,4.24808]
[1727958452839,4.2475,2354.4,2354.0,4.32369523]
[1727958453425,4.24756,2354.3,2353.9,6.32443529]
[1727958454099,0.77880782,2354.6,2353.9,6.32443529]
[1727958454403,4.24763,2354.3,2353.9,10.57261529]
[1727958454749,4.24738,2354.4,2354.0,4.24806]
[1727958455047,8.49487,2354.4,2354.0,5.38717153]
[1727958455621,4.24755,2354.3,2354.0,1.13911153]
[1727958455824,4.24755,2354.3,2353.9,9.04644]
[1727958456160,4.24755,2354.3,2353.9,4.79822]
[1727958456504,4.24755,2354.3,2353.9,9.04641]
[1727958456706,4.24755,2354.3,2354.0,0.986491]
[1727958458341,4.24755,2354.3,2353.9,9.04632]
[1727958458804,4.24755,2354.3,2353.9,4.79816]
[1727958460253,4.24755,2354.3,2353.9,0.55]
[1727958460254,4.24774,2354.2,2353.9,0.55]